fUST/lending_fUST_20250615
["ID","MTS","AMOUNT","RATE_DAILY","PERIOD"]
[365853897,1749960638610,-460.0,0.00021917,4]
[365853898,1749960638619,-431.75143913,0.00021917,4]
[365853899,1749960638629,-460.0,0.00021917,4]
[365853900,1749960638638,-364.91994067,0.00021917,4]
[365853901,1749960638648,-460.0,0.00021917,4]
[365853902,1749960638658,-460.0,0.00021917,4]
[365853903,1749960638667,-460.0,0.00021917,4]
[365853904,1749960638677,-460.0,0.00021917,4]
[365853905,1749960638686,-439.70876689,0.00021917,4]
[365853906,1749960638695,-460.0,0.00021917,4]
[365853907,1749960638706,-460.0,0.00021917,4]
[365853908,1749960638716,-439.85206195,0.00021917,4]
[365853909,1749960638726,-432.46459542,0.00021917,4]
[365853910,1749960638736,-446.67535593,0.00021917,4]
[365853911,1749960638746,-498.82172616,0.00021917,4]
[365853912,1749960638756,-460.0,0.00021917,4]
[365853913,1749960638765,-448.03836172,0.00021917,4]
[365853914,1749960638775,-460.0,0.00021917,4]
[365853915,1749960638785,-434.99163035,0.00021917,4]
[365853916,1749960638794,-439.40044257,0.00021917,4]
[365853917,1749960638804,-460.0,0.00021917,4]
[365853918,1749960638814,-437.01982406,0.00021917,4]
[365853919,1749960638823,-350.07941233,0.00021917,4]
[365853920,1749960638833,-460.0,0.00021917,4]
[365853921,1749960638843,-440.01762982,0.00021917,4]
[365853922,1749960638853,-251.89117839,0.00021917,4]
[365853923,1749960638863,-449.00145525,0.00021917,4]
[365853924,1749960638872,-442.18625728,0.00021917,4]
[365853925,1749960638882,-474.25946135,0.00021917,4]
[365853926,1749960638892,-459.54524491,0.00021917,4]
[365853927,1749960638902,-460.0,0.00021917,4]
[365853928,1749960638912,-426.36150275,0.00021917,4]
[365853929,1749960638922,-444.35331728,0.00021917,4]
[365853930,1749960638931,-436.00838907,0.00021917,4]
[365853931,1749960638941,-435.73432771,0.00021917,4]
[365853932,1749960638950,-442.26035825,0.00021917,4]
[365853933,1749960638961,-442.0723754,0.00021917,4]
[365853934,1749960638971,-460.0,0.00021917,4]
[365853935,1749960638981,-440.21589457,0.00021917,4]
[365853936,1749960638991,-437.91168777,0.00021917,4]
[365853937,1749960639000,-460.0,0.00021917,4]
[365853938,1749960639011,-460.0,0.00021917,4]
[365853939,1749960639020,-448.22430061,0.00021917,4]
[365853940,1749960639030,-327.42237622,0.00021917,4]
[365853941,1749960639040,-410.00519414,0.00021917,4]
[365853942,1749960639050,-430.0,0.00021917,4]
[365853943,1749960639060,-460.0,0.00021917,4]
[365853944,1749960639070,-397.51579736,0.00021917,4]
[365853945,1749960639079,-437.31668921,0.00021917,4]
[365853946,1749960639089,-450.51132555,0.00021917,4]
[365853947,1749960639099,-430.0,0.00021917,4]
[365853948,1749960639109,-455.05216204,0.00021917,4]
[365853949,1749960639119,-406.99619169,0.00021917,4]
[365853950,1749960639134,-409.73304697,0.00021917,4]
[365853951,1749960639144,-441.0611337,0.00021917,4]
[365853952,1749960639153,-271.79467864,0.00021917,4]
[365853953,1749960639163,-592.03730034,0.00021917,4]
[365853954,1749960639174,-460.0,0.00021917,4]
[365853955,1749960639183,-460.0,0.00021917,4]
[365853956,1749960639193,-460.0,0.00021917,4]
[365853957,1749960639204,-410.98088637,0.00021917,4]
[365853958,1749960639214,-460.0,0.00021917,4]
[365853959,1749960639223,-211.33763921,0.00021917,4]
[365853960,1749960639233,-472.84290823,0.00021917,4]
[365853961,1749960639242,-586.54,0.00021917,4]
[365853962,1749960639252,-565.22,0.00021917,4]
[365853963,1749960639262,-453.3240402,0.00021917,4]
[365853964,1749960639271,-460.0,0.00021917,4]
[365853965,1749960639280,-460.0,0.00021917,4]
[365853966,1749960639290,-460.0,0.00021917,4]
[365853967,1749960639300,-468.09808212,0.00021917,4]
[365853968,1749960639309,-454.59611311,0.00021917,4]
[365853969,1749960639318,-460.0,0.00021917,4]
[365853970,1749960639328,-802.16,0.00021917,4]
[365853971,1749960639338,-460.0,0.00021917,4]
[365853972,1749960639347,-435.4188828,0.00021917,4]
[365853973,1749960639357,-464.22806016,0.00021917,4]
[365853974,1749960639366,-460.0,0.00021917,4]
[365853975,1749960639376,-464.617592,0.00021917,4]
[365853976,1749960639386,-500.0,0.00021917,4]
[365853977,1749960639395,-460.0,0.00021917,4]
[365853978,1749960639405,-460.0,0.00021917,4]
[365853979,1749960639414,-460.0,0.00021917,4]
[365853980,1749960639424,-430.0,0.00021917,4]
[365853981,1749960639433,-460.0,0.00021917,4]
[365853982,1749960639443,-460.0,0.00021917,4]
[365853983,1749960639452,-430.0,0.00021917,4]
[365853984,1749960639462,-434.90047896,0.00021917,4]
[365853985,1749960639471,-460.0,0.00021917,4]
[365853986,1749960639481,-460.0,0.00021917,4]
[365853987,1749960639490,-460.0,0.00021917,4]
[365853988,1749960639499,-460.0,0.00021917,4]
[365853989,1749960639509,-460.0,0.00021917,4]
[365853990,1749960639519,-460.0,0.00021917,4]
[365853991,1749960639529,-428.47710096,0.00021917,4]
[365853992,1749960639539,-443.53512227,0.00021917,4]
[365853993,1749960639549,-222.81001161,0.00021917,4]
[365853994,1749960639559,-460.4875723,0.00021917,4]
[365853995,1749960639568,-618.86,0.00021917,4]
[365853996,1749960639578,-460.0,0.00021917,4]
[365853997,1749960639587,-447.10320258,0.00021917,4]
[365853998,1749960639597,-455.08124486,0.00021917,4]
[365853999,1749960639606,-460.0,0.00021917,4]
[365854000,1749960639616,-401.52839032,0.00021917,4]
[365854001,1749960639625,-460.0,0.00021917,4]
[365854002,1749960639634,-430.0,0.00021917,4]
[365854003,1749960639644,-460.0,0.00021917,4]
[365854004,1749960639653,-460.0,0.00021917,4]
[365854005,1749960639822,-461.69236147,0.00021917,4]
[365854006,1749960639832,-436.84326752,0.00021917,4]
[365854007,1749960639842,-460.0,0.00021917,4]
[365854008,1749960639851,-441.90002606,0.00021917,4]
[365854009,1749960639860,-460.0,0.00021917,4]
[365854010,1749960639869,-447.0449894,0.00021917,4]
[365854011,1749960639878,-407.26953229,0.00021917,4]
[365854012,1749960639888,-460.0,0.00021917,4]
[365854013,1749960639897,-460.0,0.00021917,4]
[365854014,1749960639906,-177.37996635,0.00021917,4]
[365854015,1749960639916,-460.0,0.00021917,4]
[365854016,1749960639925,-460.0,0.00021917,2]
[365854017,1749960639935,-460.0,0.00021917,4]
[365854018,1749960639944,-460.0,0.00021917,4]
[365854019,1749960639954,-491.95,0.00021917,4]
[365854020,1749960639963,-617.29,0.00021917,4]
[365854021,1749960639972,-3691.31,0.00021917,4]
[365854022,1749960639982,-400.0,0.00021917,4]
[365854024,1749960639991,-460.0,0.00021917,4]
[365854025,1749960640000,-430.0,0.00021917,4]
[365854026,1749960640010,-460.0,0.00021917,4]
[365854027,1749960640019,-460.0,0.00021917,4]
[365854028,1749960640027,-460.0,0.00021917,4]
[365854029,1749960640037,-460.0,0.00021917,4]
[365854030,1749960640046,-460.0,0.00021917,4]
[365854031,1749960640055,-460.0,0.00021917,4]
[365854032,1749960640064,-804.61,0.00021917,4]
[365854033,1749960640073,-602.89,0.00021917,4]
[365854034,1749960640082,-440.0,0.00021917,4]
[365854035,1749960640091,-450.06732633,0.00021917,4]
[365854036,1749960640100,-460.0,0.00021917,4]
[365854037,1749960640109,-2582.74,0.00021917,4]
[365854038,1749960640118,-430.0,0.00021917,4]
[365854039,1749960640128,-460.0,0.00021917,4]
[365854040,1749960640139,-460.0,0.00021917,4]
[365854041,1749960640148,-460.0,0.00021917,4]
[365854042,1749960640157,-460.0,0.00021917,4]
[365854043,1749960640166,-437.42190687,0.00021917,4]
[365854044,1749960640175,-460.0,0.00021917,4]
[365854045,1749960640184,-2661.58,0.00021917,4]
[365854046,1749960640193,-1394.78,0.00021917,4]
[365854047,1749960640202,-645.42,0.00021917,4]
[365854048,1749960640211,-436.70426987,0.00021917,4]
[365854049,1749960640221,-460.0,0.00021917,4]
[365854050,1749960640230,-437.95963149,0.00021917,4]
[365854052,1749960640239,-405.76846984,0.00021917,4]
[365854053,1749960640248,-3004.79,0.00021917,4]
[365854054,1749960640258,-420.67305538,0.00021917,4]
[365854055,1749960640267,-514.04277809,0.00021917,4]
[365854056,1749960640277,-460.0,0.00021917,4]
[365854057,1749960640287,-400.0,0.00021917,4]
[365854058,1749960640296,-460.0,0.00021917,4]
[365854059,1749960640305,-1385.25,0.00021917,4]
[365854060,1749960640315,-460.0,0.00021917,4]
[365854061,1749960640324,-460.0,0.00021917,4]
[365854062,1749960640334,-416.32854179,0.00021917,4]
[365854063,1749960640343,-405.17793295,0.00021917,4]
[365854064,1749960640352,-298.01024769,0.00021917,4]
[365854065,1749960640361,-1319.88,0.00021917,4]
[365854066,1749960640370,-1086.48,0.00021917,4]
[365854067,1749960640379,-165.50616548,0.00021917,4]
[365854068,1749960640388,-460.0,0.00021917,4]
[365854069,1749960640399,-460.0,0.00021917,4]
[365854070,1749960640408,-460.0,0.00021917,4]
[365854071,1749960640417,-600.0,0.00021917,4]
[365854072,1749960640426,-460.0,0.00021917,4]
[365854073,1749960640436,-793.12,0.00021917,4]
[365854074,1749960640445,-460.0,0.00021917,4]
[365854075,1749960640455,-460.0,0.00021917,4]
[365854076,1749960640465,-460.0,0.00021917,4]
[365854077,1749960640475,-343.97313591,0.00021917,4]
[365854078,1749960640484,-460.0,0.00021917,4]
[365854079,1749960640494,-460.0,0.00021917,4]
[365854080,1749960640503,-460.0,0.00021917,4]
[365854082,1749960640513,-474.51,0.00021917,4]
[365854084,1749960640522,-548.87,0.00021917,4]
[365854086,1749960640531,-460.0,0.00021917,4]
[365854088,1749960640541,-460.0,0.00021917,4]
[365854090,1749960640550,-460.0,0.00021917,4]
[365854093,1749960640559,-442.35215341,0.00021917,4]
[365854095,1749960640568,-460.0,0.00021917,4]
[365854097,1749960640577,-476.31,0.00021917,4]
[365854099,1749960640586,-434.26134436,0.00021917,4]
[365854101,1749960640595,-1486.43,0.00021917,4]
[365854103,1749960640605,-460.0,0.00021917,4]
[365854105,1749960640614,-460.0,0.00021917,4]
[365854107,1749960640623,-460.0,0.00021917,4]
[365854109,1749960640632,-460.0,0.00021917,4]
[365854111,1749960640641,-303.65380597,0.00021917,4]
[365854113,1749960640650,-154.89348063,0.00021917,4]
[365854115,1749960640659,-442.19939293,0.00021917,4]
[365854117,1749960640668,-426.16956565,0.00021917,4]
[365854119,1749960640677,-460.0,0.00021917,4]
[365854121,1749960640686,-852.94,0.00021917,4]
[365854123,1749960640695,-1400.29,0.00021917,4]
[365854125,1749960640704,-522.88215067,0.00021917,4]
[365854127,1749960640713,-507.36390852,0.00021917,4]
[365854129,1749960640722,-460.0,0.00021917,4]
[365854131,1749960640731,-460.0,0.00021917,4]
[365854133,1749960640740,-460.0,0.00021917,4]
[365854135,1749960640749,-1639.62,0.00021917,4]
[365854137,1749960640759,-430.0,0.00021917,4]
[365854139,1749960640768,-619.19,0.00021917,4]
[365854142,1749960640779,-460.0,0.00021917,4]
[365854145,1749960640788,-430.0,0.00021917,4]
[365854147,1749960640797,-1378.57,0.00021917,4]
[365854149,1749960640807,-435.83941792,0.00021917,4]
[365854151,1749960640816,-460.0,0.00021917,4]
[365854153,1749960640825,-1626.87,0.00021917,4]
[365854155,1749960640834,-460.0,0.00021917,4]
[365854157,1749960640843,-484.66,0.00021917,4]
[365854159,1749960640853,-2191.75,0.00021917,4]
[365854161,1749960640862,-882.21,0.00021917,4]
[365854163,1749960640871,-460.0,0.00021917,4]
[365854165,1749960640881,-460.0,0.00021917,4]
[365854167,1749960640890,-1876.12,0.00021917,4]
[365854169,1749960640899,-601.09,0.00021917,4]
[365854171,1749960640909,-3433.1,0.00021917,4]
[365854173,1749960640918,-349.39189322,0.00021917,4]
[365854175,1749960640927,-460.0,0.00021917,4]
[365854177,1749960640937,-506.16,0.00021917,4]
[365854179,1749960640946,-460.0,0.00021917,4]
[365854181,1749960640955,-12151.22,0.00022,5]
[365854183,1749960640964,-172.0,0.00022,2]
[365854185,1749960640973,-468.43147778,0.00022038,6]
[365854187,1749960640982,-151.0,0.00022054,4]
[365854189,1749960640991,-151.0,0.00022081,4]
[365854191,1749960641007,-226.26629478,0.00022091,2]
[365854193,1749960641017,-235.54694619,0.00022109,4]
[365854195,1749960641026,-468.43147778,0.00022176,6]
[365854197,1749960641035,-460.0,0.00022191,4]
[365854199,1749960641045,-400.0,0.00022191,4]
[365854201,1749960641055,-460.0,0.00022191,4]
[365854203,1749960641064,-460.0,0.00022191,4]
[365854205,1749960641073,-460.0,0.00022191,4]
[365854207,1749960641083,-460.0,0.00022191,4]
[365854209,1749960641092,-460.0,0.00022191,4]
[365854211,1749960641103,-188.34080003,0.00022191,4]
[365854213,1749960641112,-408.59589893,0.00022191,4]
[365854215,1749960641121,-409.74864115,0.00022191,4]
[365854217,1749960641136,-460.0,0.00022191,4]
[365854219,1749960641147,-460.0,0.00022191,4]
[365854221,1749960641157,-410.43529529,0.00022191,4]
[365854223,1749960641166,-278.83011424,0.00022191,4]
[365854225,1749960641179,-460.0,0.00022191,4]
[365854227,1749960641188,-460.0,0.00022191,4]
[365854229,1749960641197,-460.0,0.00022191,4]
[365854231,1749960641207,-460.0,0.00022191,4]
[365854233,1749960641216,-368.36877688,0.00022191,4]
[365854235,1749960641225,-460.0,0.00022191,4]
[365854237,1749960641234,-460.0,0.00022191,4]
[365854239,1749960641243,-356.52464929,0.00022191,4]
[365854241,1749960641252,-460.0,0.00022191,4]
[365854243,1749960641262,-460.0,0.00022191,4]
[365854245,1749960641271,-586.54,0.00022191,4]
[365854247,1749960641280,-565.22,0.00022191,4]
[365854249,1749960641289,-460.0,0.00022191,4]
[365854251,1749960641299,-460.0,0.00022191,4]
[365854253,1749960641307,-460.0,0.00022191,4]
[365854255,1749960641317,-460.0,0.00022191,4]
[365854257,1749960641327,-802.16,0.00022191,4]
[365854260,1749960641336,-460.0,0.00022191,4]
[365854261,1749960641346,-500.0,0.00022191,4]
[365854263,1749960641356,-460.0,0.00022191,4]
[365854265,1749960641365,-460.0,0.00022191,4]
[365854267,1749960641374,-460.0,0.00022191,4]
[365854269,1749960641384,-344.82147169,0.00022191,4]
[365854271,1749960641394,-460.0,0.00022191,4]
[365854273,1749960641404,-460.0,0.00022191,4]
[365854275,1749960641414,-383.95841385,0.00022191,4]
[365854277,1749960641423,-460.0,0.00022191,4]
[365854279,1749960641432,-460.0,0.00022191,4]
[365854281,1749960641441,-618.86,0.00022191,4]
[365854283,1749960641450,-460.0,0.00022191,4]
[365854285,1749960641460,-440.0,0.00022191,4]
[365854287,1749960641469,-420.0,0.00022191,4]
[365854289,1749960641478,-422.87713543,0.00022191,4]
[365854292,1749960641488,-460.0,0.00022191,4]
[365854294,1749960641497,-460.0,0.00022191,4]
[365854296,1749960641506,-460.0,0.00022191,4]
[365854298,1749960641515,-249.17,0.00022191,4]
[365854300,1749960641524,-460.0,0.00022191,4]
[365854302,1749960641534,-460.0,0.00022191,2]
[365854304,1749960641543,-460.0,0.00022191,4]
[365854306,1749960641552,-460.0,0.00022191,4]
[365854308,1749960641561,-491.95,0.00022191,4]
[365854310,1749960641570,-617.29,0.00022191,4]
[365854312,1749960641579,-3691.31,0.00022191,4]
[365854314,1749960641588,-449.59086248,0.00022191,4]
[365854316,1749960641598,-460.0,0.00022191,4]
[365854318,1749960641608,-460.0,0.00022191,4]
[365854320,1749960641616,-460.0,0.00022191,4]
[365854322,1749960641625,-460.0,0.00022191,4]
[365854324,1749960641634,-274.20076393,0.00022191,4]
[365854326,1749960641644,-384.86192728,0.00022191,4]
[365854328,1749960641653,-804.61,0.00022191,4]
[365854330,1749960641663,-602.89,0.00022191,4]
[365854332,1749960641672,-460.0,0.00022191,4]
[365854334,1749960641682,-2582.74,0.00022191,4]
[365854336,1749960641691,-460.0,0.00022191,4]
[365854338,1749960641700,-427.00703733,0.00022191,4]
[365854340,1749960641711,-460.0,0.00022191,4]
[365854342,1749960641721,-460.0,0.00022191,4]
[365854344,1749960641730,-460.0,0.00022191,4]
[365854346,1749960641739,-2661.58,0.00022191,4]
[365854348,1749960641748,-1394.78,0.00022191,4]
[365854350,1749960641757,-645.42,0.00022191,4]
[365854352,1749960641767,-366.9651575,0.00022191,4]
[365854354,1749960641777,-3004.79,0.00022191,4]
[365854356,1749960641787,-460.0,0.00022191,4]
[365854358,1749960641795,-380.33389559,0.00022191,4]
[365854360,1749960641804,-1385.25,0.00022191,4]
[365854362,1749960641813,-465.3112175,0.00022191,4]
[365854364,1749960641823,-460.0,0.00022191,4]
[365854366,1749960641832,-1319.88,0.00022191,4]
[365854368,1749960641842,-1086.48,0.00022191,4]
[365854370,1749960641850,-460.0,0.00022191,4]
[365854372,1749960641860,-460.0,0.00022191,4]
[365854374,1749960641869,-600.0,0.00022191,4]
[365854376,1749960641879,-793.12,0.00022191,4]
[365854378,1749960641888,-460.0,0.00022191,4]
[365854380,1749960641897,-460.0,0.00022191,4]
[365854382,1749960641906,-460.0,0.00022191,4]
[365854384,1749960641915,-460.0,0.00022191,4]
[365854386,1749960641925,-245.51151477,0.00022191,4]
[365854388,1749960641934,-474.51,0.00022191,4]
[365854390,1749960641942,-548.87,0.00022191,4]
[365854392,1749960641951,-450.17347945,0.00022191,4]
[365854394,1749960641960,-460.0,0.00022191,4]
[365854396,1749960641969,-460.0,0.00022191,4]
[365854398,1749960641979,-460.0,0.00022191,4]
[365854400,1749960641988,-476.31,0.00022191,4]
[365854402,1749960641997,-1486.43,0.00022191,4]
[365854404,1749960642006,-460.0,0.00022191,4]
[365854406,1749960642015,-589.94204487,0.00022191,4]
[365854408,1749960642024,-460.0,0.00022191,4]
[365854410,1749960642034,-460.0,0.00022191,4]
[365854412,1749960642043,-460.0,0.00022191,4]
[365854414,1749960642054,-852.94,0.00022191,4]
[365854416,1749960642063,-1400.29,0.00022191,4]
[365854418,1749960642072,-460.0,0.00022191,4]
[365854420,1749960642082,-403.92475586,0.00022191,4]
[365854422,1749960642091,-460.0,0.00022191,4]
[365854425,1749960642100,-1639.62,0.00022191,4]
[365854427,1749960642109,-619.19,0.00022191,4]
[365854429,1749960642119,-460.0,0.00022191,4]
[365854430,1749960642129,-1378.57,0.00022191,4]
[365854433,1749960642140,-460.0,0.00022191,4]
[365854435,1749960642149,-1626.87,0.00022191,4]
[365854437,1749960642158,-484.66,0.00022191,4]
[365854439,1749960642168,-2191.75,0.00022191,4]
[365854441,1749960642177,-882.21,0.00022191,4]
[365854443,1749960642186,-460.0,0.00022191,4]
[365854445,1749960642195,-460.0,0.00022191,4]
[365854447,1749960642204,-1876.12,0.00022191,4]
[365854449,1749960642213,-601.09,0.00022191,4]
[365854451,1749960642225,-3433.1,0.00022191,4]
[365854453,1749960642234,-506.16,0.00022191,4]
[365854455,1749960642243,-460.0,0.00022191,4]
[365854457,1749960642252,-207.4,0.00022205,2]
[365854459,1749960642263,-468.43147778,0.00022314,7]
[365854461,1749960642273,-160.0,0.00022325,2]
[365854463,1749960642283,-835.55256958,0.00022325,2]
[365854465,1749960642293,-160.0,0.00022325,2]
[365854467,1749960642302,-424.47602138,0.00022325,2]
[365854469,1749960642312,-6602.23355622,0.00022365,2]
[365854471,1749960642322,-468.43147778,0.00022452,7]
[365854473,1749960642331,-430.0,0.00022465,4]
[365854475,1749960642340,-440.0,0.00022465,4]
[365854477,1749960642350,-460.0,0.00022465,4]
[365854479,1749960642359,-463.51388073,0.00022465,4]
[365854481,1749960642368,-439.30146401,0.00022465,4]
[365854483,1749960642378,-397.01982406,0.00022465,4]
[365854485,1749960642387,-414.72207128,0.00022465,4]
[365854487,1749960642396,-460.0,0.00022465,4]
[365854489,1749960642405,-370.0,0.00022465,4]
[365854491,1749960642414,-356.86308249,0.00022465,4]
[365854493,1749960642423,-201.25926654,0.00022465,4]
[365854495,1749960642433,-386.97087463,0.00022465,4]
[365854497,1749960642442,-460.0,0.00022465,4]
[365854499,1749960642451,-575.96798661,0.00022465,4]
[365854501,1749960642460,-586.54,0.00022465,4]
[365854503,1749960642469,-565.22,0.00022465,4]
[365854505,1749960642479,-460.0,0.00022465,4]
[365854507,1749960642488,-460.0,0.00022465,4]
[365854509,1749960642497,-460.0,0.00022465,4]
[365854511,1749960642507,-460.0,0.00022465,4]
[365854513,1749960642515,-802.16,0.00022465,4]
[365854515,1749960642524,-420.0,0.00022465,4]
[365854517,1749960642534,-500.0,0.00022465,4]
[365854518,1749960642542,-460.0,0.00022465,4]
[365854521,1749960642552,-547.09445264,0.00022465,4]
[365854523,1749960642561,-370.0,0.00022465,4]
[365854525,1749960642571,-460.0,0.00022465,4]
[365854527,1749960642580,-460.0,0.00022465,4]
[365854529,1749960642589,-420.0,0.00022465,4]
[365854531,1749960642598,-460.0,0.00022465,4]
[365854533,1749960642607,-618.86,0.00022465,4]
[365854535,1749960642617,-460.0,0.00022465,4]
[365854537,1749960642626,-414.54376322,0.00022465,4]
[365854539,1749960642635,-440.0,0.00022465,4]
[365854541,1749960642644,-460.0,0.00022465,4]
[365854543,1749960642653,-460.0,0.00022465,4]
[365854545,1749960642662,-460.0,0.00022465,2]
[365854547,1749960642671,-460.0,0.00022465,4]
[365854549,1749960642680,-460.0,0.00022465,4]
[365854551,1749960642689,-491.95,0.00022465,4]
[365854553,1749960642698,-617.29,0.00022465,4]
[365854555,1749960642707,-3691.31,0.00022465,4]
[365854557,1749960642716,-460.0,0.00022465,4]
[365854559,1749960642726,-400.0,0.00022465,4]
[365854561,1749960642735,-460.0,0.00022465,4]
[365854562,1749960642744,-460.0,0.00022465,4]
[365854564,1749960642754,-804.61,0.00022465,4]
[365854567,1749960642763,-602.89,0.00022465,4]
[365854569,1749960642773,-460.0,0.00022465,4]
[365854571,1749960642783,-2582.74,0.00022465,4]
[365854573,1749960642792,-451.50022909,0.00022465,4]
[365854575,1749960642801,-340.0,0.00022465,4]
[365854577,1749960642810,-460.0,0.00022465,4]
[365854579,1749960642819,-320.0,0.00022465,4]
[365854581,1749960642828,-2661.58,0.00022465,4]
[365854582,1749960642837,-1394.78,0.00022465,4]
[365854585,1749960642847,-645.42,0.00022465,4]
[365854586,1749960642856,-3004.79,0.00022465,4]
[365854588,1749960642866,-1385.25,0.00022465,4]
[365854590,1749960642875,-460.0,0.00022465,4]
[365854592,1749960642884,-1319.88,0.00022465,4]
[365854594,1749960642894,-1086.48,0.00022465,4]
[365854596,1749960642903,-460.0,0.00022465,4]
[365854598,1749960642912,-460.0,0.00022465,4]
[365854600,1749960642921,-600.0,0.00022465,4]
[365854603,1749960642931,-793.12,0.00022465,4]
[365854604,1749960642940,-460.0,0.00022465,4]
[365854607,1749960642950,-411.9988305,0.00022465,4]
[365854609,1749960642961,-460.0,0.00022465,4]
[365854611,1749960642971,-460.0,0.00022465,4]
[365854614,1749960642979,-474.51,0.00022465,4]
[365854616,1749960642989,-548.87,0.00022465,4]
[365854618,1749960642998,-460.0,0.00022465,4]
[365854620,1749960643009,-460.0,0.00022465,4]
[365854622,1749960643018,-460.0,0.00022465,4]
[365854624,1749960643028,-476.31,0.00022465,4]
[365854626,1749960643037,-1486.43,0.00022465,4]
[365854628,1749960643046,-460.0,0.00022465,4]
[365854630,1749960643055,-460.0,0.00022465,4]
[365854632,1749960643065,-460.0,0.00022465,4]
[365854634,1749960643075,-460.0,0.00022465,4]
[365854636,1749960643085,-852.94,0.00022465,4]
[365854638,1749960643094,-1400.29,0.00022465,4]
[365854640,1749960643103,-460.0,0.00022465,4]
[365854642,1749960643112,-460.0,0.00022465,4]
[365854644,1749960643122,-1639.62,0.00022465,4]
[365854646,1749960643135,-619.19,0.00022465,4]
[365854648,1749960643145,-460.0,0.00022465,4]
[365854650,1749960643155,-1378.57,0.00022465,4]
[365854664,1749960643269,-460.0,0.00022465,4]
[365854666,1749960643299,-1626.87,0.00022465,4]
[365854668,1749960643308,-484.66,0.00022465,4]
[365854670,1749960643318,-2191.75,0.00022465,4]
[365854672,1749960643328,-882.21,0.00022465,4]
[365854674,1749960643338,-460.0,0.00022465,4]
[365854676,1749960643348,-460.0,0.00022465,4]
[365854678,1749960643357,-1876.12,0.00022465,4]
[365854681,1749960643368,-601.09,0.00022465,4]
[365854683,1749960643378,-3433.1,0.00022465,4]
[365854685,1749960643388,-400.0,0.00022465,4]
[365854687,1749960643398,-506.16,0.00022465,4]
[365854689,1749960643408,-226.26629478,0.00022502,2]
[365854691,1749960643418,-468.43147778,0.0002259,7]
[365854693,1749960643427,-168.0,0.000227,2]
[365854695,1749960643437,-468.43147778,0.00022728,7]
[365854697,1749960643447,-460.0,0.00022739,4]
[365854699,1749960643456,-460.0,0.00022739,4]
[365854701,1749960643466,-400.0,0.00022739,4]
[365854703,1749960643475,-586.54,0.00022739,4]
[365854705,1749960643485,-565.22,0.00022739,4]
[365854707,1749960643495,-460.0,0.00022739,4]
[365854709,1749960643505,-460.0,0.00022739,4]
[365854711,1749960643519,-460.0,0.00022739,4]
[365854713,1749960643528,-460.0,0.00022739,4]
[365854715,1749960643538,-802.16,0.00022739,4]
[365854717,1749960643548,-280.0,0.00022739,4]
[365854719,1749960643558,-460.0,0.00022739,4]
[365854721,1749960643568,-460.0,0.00022739,4]
[365854723,1749960643577,-599.94197303,0.00022739,4]
[365854725,1749960643587,-618.86,0.00022739,4]
[365854727,1749960643597,-460.0,0.00022739,4]
[365854729,1749960643607,-460.0,0.00022739,4]
[365854731,1749960643617,-460.0,0.00022739,2]
[365854733,1749960643626,-460.0,0.00022739,4]
[365854735,1749960643636,-460.0,0.00022739,4]